bitfinex-derivatives/quotes_SOLF0:USTF0_20250301
["timestamp","ask_amount","ask_price","bid_price","bid_amount"]
[1740821132859,6.2655,143.69,143.65,6.2668]
[1740821133460,0.05196572,143.68,143.66,0.05270925]
[1740821135154,6.31756572,143.68,143.66,0.05270925]
[1740821135360,0.05196572,143.68,143.63,117.15147679]
[1740821135859,6.2663,143.67,143.63,117.15147679]
[1740821136463,6.2663,143.67,143.64,0.04641711]
[1740821137455,0.05196572,143.68,143.59,0.96499143]
[1740821137653,10.0,143.72,143.59,0.96499143]
[1740821137654,4.4361,143.66,143.59,0.96499143]
[1740821138263,6.2677,143.64,143.6,6.2688]
[1740821138666,0.04893532,143.63,143.61,0.05087231]
[1740821138867,0.04893532,143.63,143.61,6.31927231]
[1740821139167,222.76,143.77,143.61,195.53087231]
[1740821139367,6.2633,143.74,143.69,6.2648]
[1740821139559,6.2633,143.74,143.67,10.0]
[1740821139757,6.5575,143.76,143.67,10.0]
[1740821140055,6.2633,143.74,143.69,6.2649]
[1740821140255,0.04820987,143.73,143.7,0.05092537]
[1740821142868,6.2642,143.72,143.7,0.05092537]
[1740821143260,0.04820987,143.73,143.7,0.05092537]
[1740821143465,6.2643,143.71,143.7,0.05092537]
[1740821143869,6.2643,143.71,143.68,6.2653]
[1740821144069,6.2653,143.69,143.62,4.2912]
[1740821144270,6.2653,143.69,143.63,10.0]
[1740821144564,10.0,143.73,143.67,6.266]
[1740821144769,6.2647,143.71,143.67,6.266]
[1740821145069,0.05339713,143.7,143.68,0.04878184]
[1740821146468,6.31819713,143.7,143.68,0.04878184]
[1740821150371,6.2652,143.69,143.68,0.04878184]
[1740821154082,0.05339713,143.7,143.68,0.04878184]
[1740821154381,6.2652,143.69,143.68,0.04878184]
[1740821154784,0.05339713,143.7,143.68,6.31418184]
[1740821156183,0.05339713,143.7,143.68,0.04878184]
[1740821157895,6.31819713,143.7,143.68,0.04878184]
[1740821158393,0.05339713,143.7,143.68,0.04878184]
[1740821158685,6.2652,143.69,143.68,0.04878184]
[1740821168902,6.267,143.65,143.62,6.2681]
[1740821169302,6.267,143.65,143.61,16.2685]
[1740821169899,6.31972178,143.64,143.62,0.05189256]
[1740821170100,6.2674,143.64,143.62,0.05189256]
[1740821170296,6.31420575,143.64,143.62,0.05189256]
[1740821170701,0.04680575,143.64,143.62,6.32009256]
[1740821171406,0.04680575,143.64,143.63,6.2678]
[1740821171701,0.04680575,143.64,143.62,0.05189256]
[1740821172906,6.31460575,143.64,143.62,0.05189256]
[1740821173201,0.04680575,143.64,143.62,0.05189256]
[1740821173705,6.31430575,143.64,143.62,0.05189256]
[1740821175204,0.04680575,143.64,143.62,0.05189256]
[1740821175703,0.04680575,143.64,143.63,6.2678]
[1740821176099,10.0,143.73,143.62,0.05189256]
[1740821176295,6.2648,143.7,143.66,6.2661]
[1740821177208,0.05111752,143.69,143.67,6.31549477]
[1740821177404,6.2652,143.69,143.59,316.75379882]
[1740821177602,0.05143925,143.69,143.67,0.051042]
[1740821177902,10.0,143.73,143.67,0.04588185]
[1740821178108,0.05186798,143.69,143.67,0.04588185]
[1740821182312,6.2656,143.68,143.67,0.04588185]
[1740821182503,0.05186798,143.69,143.67,0.04588185]
[1740821183113,6.31726798,143.69,143.67,0.04588185]
[1740821183410,0.05186798,143.69,143.67,0.04588185]
[1740821183709,6.2656,143.68,143.67,0.04588185]
[1740821184109,0.05186798,143.69,143.67,0.04588185]
[1740821185111,0.05186798,143.69,143.68,6.2656]
[1740821185610,0.05186798,143.69,143.67,0.04588185]
[1740821185810,0.05186798,143.69,143.67,6.31168185]
[1740821186212,0.05186798,143.69,143.67,0.04588185]
[1740821187105,6.2656,143.68,143.67,0.04588185]
[1740821188808,0.05186798,143.69,143.63,15.92020815]
[1740821189514,6.2669,143.66,143.63,9.65250815]
[1740821189716,4.2974,143.68,143.59,124.75379882]
[1740821190015,0.04472154,143.65,143.62,6.31331581]
[1740821190313,0.04472154,143.65,143.62,0.04531581]
[1740821191112,0.04472154,143.65,143.58,38.44404226]
[1740821191312,6.2682,143.63,143.59,6.2695]
[1740821192216,6.2682,143.63,143.6,0.05064329]
[1740821193113,6.2683,143.62,143.6,0.05064329]
[1740821195610,6.2687,143.61,143.6,0.05064329]
[1740821199516,6.32071506,143.62,143.6,0.05064329]
[1740821200319,0.05231506,143.62,143.6,0.05064329]
[1740821200506,6.2687,143.61,143.6,0.05064329]
[1740821204723,6.2698,143.59,143.54,10.0]
[1740821205523,6.2698,143.59,143.55,6.2711]
[1740821205828,0.05210374,143.58,143.55,6.32229162]
[1740821207125,0.05210374,143.58,143.55,0.05119162]
[1740821207424,0.05210374,143.58,143.56,6.2708]
[1740821209626,0.05210374,143.58,143.55,0.05119162]
[1740821209929,6.32210374,143.58,143.55,6.32239162]
[1740821210127,0.05210374,143.58,143.55,0.05119162]
[1740821211427,3.74e-06,143.58,143.55,0.05119162]
[1740821211624,6.2671,143.65,143.61,6.2685]
[1740821212722,0.04464951,143.64,143.62,0.04430301]
[1740821216621,6.31204951,143.64,143.62,0.04430301]
[1740821220431,0.04464951,143.64,143.62,0.04430301]
[1740821220831,0.04464951,143.64,143.63,6.2678]
[1740821222236,0.04464951,143.64,143.62,0.04430301]
[1740821224632,0.04464951,143.64,143.63,6.2678]
[1740821224830,0.04464951,143.64,143.63,16.2678]
[1740821227837,0.04464951,143.64,143.63,10.0]
[1740821228237,0.04464951,143.64,143.62,0.04430301]
[1740821229644,0.04464951,143.64,143.62,6.31220301]
[1740821230237,0.04464951,143.64,143.62,0.04430301]
[1740821231243,6.2678,143.63,143.62,0.04430301]
[1740821231944,6.2678,143.63,143.58,10.0]
[1740821231945,6.2689,143.61,143.58,10.0]
[1740821232145,2.2152,143.66,143.58,10.0]
[1740821232541,6.2686,143.62,143.58,16.2697]
[1740821232742,2.1074,143.65,143.58,6.2697]
[1740821233138,6.2688,143.61,143.6,0.04739781]
[1740821234239,0.04534186,143.63,143.6,0.04739781]
[1740821234442,6.2683,143.62,143.6,0.04739781]
[1740821234941,0.04534186,143.63,143.53,127.1843109]
[1740821235150,2.1074,143.65,143.53,127.1843109]
[1740821236143,0.04877235,143.6,143.53,117.53180275]
[1740821236543,0.04877235,143.6,143.57,6.2703]
[1740821238153,0.04877235,143.6,143.58,6.2699]
[1740821238447,0.04877235,143.6,143.56,10.0]
[1740821238647,0.04877235,143.6,143.59,6.2696]
[1740821239450,0.04877235,143.6,143.56,10.0]
[1740821239848,0.04877235,143.6,143.53,127.53180275]
[1740821240052,6.2698,143.59,143.55,6.2711]
[1740821240847,0.04877235,143.6,143.53,127.53180275]
[1740821241049,0.04877235,143.6,143.59,6.2696]
[1740821243948,6.267,143.65,143.58,10.0]
[1740821244249,6.2666,143.66,143.58,10.0]
[1740821244753,4.3893,143.7,143.64,6.2673]
[1740821245058,4.3893,143.7,143.58,10.0]
[1740821245256,0.04915952,143.68,143.66,0.05198877]
[1740821245449,6.2669,143.66,143.61,6.2687]
[1740821245956,0.04416765,143.65,143.62,0.04696504]
[1740821247454,6.31116765,143.65,143.62,0.04696504]
[1740821248461,0.04416765,143.65,143.62,0.04696504]
[1740821249551,0.04416765,143.65,143.63,6.2678]
[1740821251257,0.04416765,143.65,143.62,6.31506504]
[1740821252060,0.04416765,143.65,143.62,0.04696504]
[1740821252360,6.2674,143.64,143.62,0.04696504]
[1740821253662,0.04416765,143.65,143.62,0.04696504]
[1740821254258,0.04416765,143.65,143.64,6.2674]
[1740821261668,6.765e-05,143.65,143.64,6.2674]
[1740821261966,6.765e-05,143.65,143.64,9.7474]
[1740821262167,6.765e-05,143.65,143.64,14.1211]
[1740821266768,6.765e-05,143.65,143.64,35.0311]
[1740821267568,6.2612,143.79,143.75,6.2623]
[1740821267768,6.2607,143.8,143.75,6.2623]
[1740821268078,6.2607,143.8,143.72,9.98]
[1740821268268,6.261,143.79,143.74,6.2628]
[1740821268762,0.04573489,143.78,143.75,0.04710016]
[1740821269873,6.30703489,143.78,143.75,0.04710016]
[1740821270270,6.2621,143.76,143.75,0.04710016]
[1740821270472,0.04573489,143.78,143.72,9.98]
[1740821271378,6.2621,143.77,143.72,16.2438]
[1740821271770,6.2621,143.77,143.73,0.04721012]
[1740821271971,6.2622,143.76,143.73,0.04721012]
[1740821273478,0.04573489,143.78,143.73,0.04721012]
[1740821273779,6.262,143.77,143.73,6.31061012]
[1740821274278,0.04573489,143.78,143.74,6.2626]
[1740821274777,0.04573489,143.78,143.76,6.2618]
[1740821275080,0.04573489,143.78,143.73,0.04721012]
[1740821277281,0.04573489,143.78,143.76,6.262]
[1740821279982,0.04573489,143.78,143.73,0.04721012]
[1740821280179,0.04573489,143.78,143.77,6.2617]
[1740821283489,0.04573489,143.78,143.77,16.2417]
[1740821285693,0.04573489,143.78,143.77,9.98]
[1740821293594,0.04573489,143.78,143.76,0.0481525]
[1740821293790,0.04573489,143.78,143.7,0.89880449]
[1740821293996,0.04573489,143.78,143.72,6.2635]
[1740821294801,0.04573489,143.78,143.73,6.2634]
[1740821295205,6.30713489,143.78,143.71,9.98]
[1740821295800,0.04573489,143.78,143.71,9.98]
[1740821296102,0.04573489,143.78,143.75,6.2623]
[1740821296297,0.04573489,143.78,143.71,9.98]
[1740821296499,0.04573489,143.78,143.76,6.2619]
[1740821296699,0.04573489,143.78,143.71,12.1494]
[1740821297097,0.04573489,143.78,143.77,6.2617]
[1740821297297,0.04573489,143.78,143.71,12.1494]
[1740821298504,6.30723489,143.78,143.74,6.2629]
[1740821299014,6.30723489,143.78,143.75,6.2625]
[1740821299807,0.04573489,143.78,143.75,6.2625]
[1740821300703,0.04573489,143.78,143.71,12.1494]
[1740821302006,0.04573489,143.78,143.75,6.2624]
[1740821302307,0.04573489,143.78,143.71,12.1494]
[1740821302910,0.04573489,143.78,143.77,6.2617]
[1740821306014,3.489e-05,143.78,143.77,6.2617]
[1740821309814,3.489e-05,143.78,143.77,9.7417]
[1740821310010,3.489e-05,143.78,143.77,12.6479]
[1740821310315,3.489e-05,143.78,143.77,235.1879]
[1740821310914,3.489e-05,143.78,143.77,256.0979]
[1740821311115,8.5135,143.93,143.88,6.2567]
[1740821312307,0.04947072,143.92,143.89,0.04740675]
[1740821312707,6.2557,143.91,143.89,0.04740675]
[1740821312913,0.04947072,143.92,143.87,9.98]
[1740821313814,0.04947072,143.92,143.84,9.98]
[1740821314018,12.2385,143.93,143.84,9.98]
[1740821314229,6.30607547,143.89,143.84,9.98]
[1740821314515,0.04927547,143.89,143.84,9.98]
[1740821315120,0.04927547,143.89,143.83,6.2588]
[1740821315518,6.2574,143.87,143.83,6.2588]
[1740821318921,6.2574,143.87,143.82,9.98]
[1740821319123,6.2578,143.86,143.82,16.2394]
[1740821319325,6.31021527,143.86,143.82,16.2394]
[1740821319715,0.05241527,143.86,143.75,25.83716611]
[1740821319920,4.5004,143.85,143.75,38.12203057]
[1740821320120,0.04466289,143.82,143.75,38.12203057]
[1740821320324,6.2608,143.8,143.75,44.38453057]
[1740821320726,0.04563465,143.79,143.75,38.12203057]
[1740821321523,0.04563465,143.79,143.78,6.2613]
[1740821321723,0.04563465,143.79,143.78,16.2413]
[1740821322527,10.7587,143.85,143.8,6.26]
[1740821322716,8.5481,143.85,143.78,9.98]
[1740821322916,2.2739,143.88,143.78,9.98]
[1740821323218,2.2739,143.88,143.82,6.2595]
[1740821323425,6.2575,143.87,143.82,6.2595]
[1740821323724,0.0456963,143.86,143.84,0.05030324]
[1740821323920,6.2582,143.85,143.84,0.05030324]
[1740821324116,6.2582,143.85,143.78,9.98]
[1740821324320,2.2739,143.88,143.78,9.98]
[1740821325427,0.05115041,143.84,143.78,9.98]
[1740821325628,0.05115041,143.84,143.8,6.26]
[1740821326425,6.30985041,143.84,143.8,6.26]
[1740821326930,6.2594,143.83,143.79,6.2607]
[1740821327131,0.05115041,143.84,143.78,9.98]
[1740821327529,6.2597,143.82,143.78,16.241]
[1740821330226,0.05115041,143.84,143.78,9.98]
[1740821330532,0.05115041,143.84,143.73,122.03631914]
[1740821330831,0.04993414,143.8,143.74,9.98]
[1740821331434,0.04993414,143.8,143.74,16.2428]
[1740821332533,0.04993414,143.8,143.74,9.98]
[1740821333331,6.2628,143.75,143.73,122.03631914]
[1740821333726,6.30883318,143.75,143.73,122.03631914]
[1740821335029,0.04603318,143.75,143.73,122.03631914]
[1740821335633,0.04603318,143.75,143.74,6.263]
[1740821343650,0.00058936,143.75,143.74,6.263]
[1740821344654,6.2597,143.82,143.78,6.2609]
[1740821344946,4.3755,143.84,143.76,9.98]
[1740821345347,6.2592,143.83,143.76,9.98]
[1740821346047,0.05004685,143.81,143.78,0.05083446]
[1740821346251,0.05004685,143.81,143.8,6.2604]
[1740821347649,2.164,143.9,143.84,6.2584]
[1740821347858,2.164,143.9,143.82,9.98]
[1740821348349,6.2566,143.89,143.85,6.2582]
[1740821348554,2.164,143.9,143.82,9.98]
[1740821348850,0.04469929,143.88,143.86,0.04746082]
[1740821350248,0.04469929,143.88,143.87,6.2573]
[1740821351150,0.04469929,143.88,143.86,6.30506082]
[1740821351455,0.04469929,143.88,143.86,0.04746082]
[1740821352760,6.2573,143.87,143.86,0.04746082]
[1740821353549,0.04469929,143.88,143.81,9.96]
[1740821353750,2.2783,143.87,143.78,260.66203057]
[1740821353954,2.2783,143.87,143.78,48.08203057]
[1740821354259,6.2601,143.81,143.78,48.08203057]
[1740821354460,6.2601,143.81,143.78,38.12203057]
[1740821354661,0.05187479,143.81,143.78,38.17235827]
[1740821355468,0.05187479,143.81,143.78,44.43335827]
[1740821355954,6.31227479,143.81,143.78,38.17235827]
[1740821356356,6.31227479,143.81,143.78,0.0503277]
[1740821357967,0.05187479,143.81,143.78,0.0503277]
[1740821358263,0.05187479,143.81,143.78,10.0103277]
[1740821358657,0.05187479,143.81,143.79,6.2606]
[1740821361368,0.05187479,143.81,143.78,16.2714277]
[1740821362467,6.31187479,143.81,143.78,10.0103277]
[1740821362767,0.05187479,143.81,143.78,10.0103277]
[1740821363155,0.05187479,143.81,143.78,0.0503277]
[1740821363463,6.2607,143.8,143.78,0.0503277]
[1740821363668,0.05187479,143.81,143.78,0.0503277]
[1740821365370,0.05187479,143.81,143.73,9.96]
[1740821365584,4.5282,143.84,143.73,9.96]
[1740821366464,6.2617,143.77,143.73,16.2231]
[1740821366867,6.31175669,143.76,143.73,16.2231]
[1740821367169,4.5282,143.84,143.73,16.2231]
[1740821367370,0.05178474,143.76,143.73,16.2231]
[1740821367563,6.2617,143.77,143.73,16.2231]
[1740821367769,6.2617,143.77,143.74,6.263]
[1740821367958,0.05057453,143.76,143.74,6.263]
[1740821371268,0.05057453,143.76,143.75,6.2626]
[1740821372467,4.5282,143.84,143.73,9.96]
[1740821373169,6.26,143.81,143.77,6.2614]
[1740821373468,4.5282,143.84,143.73,9.96]
[1740821373665,6.31180111,143.8,143.78,0.04483262]
[1740821380477,0.05120111,143.8,143.78,0.04483262]
[1740821381377,6.2608,143.79,143.78,0.04483262]
[1740821381572,0.05120111,143.8,143.78,0.04483262]
[1740821381976,6.31180111,143.8,143.78,0.04483262]
[1740821382475,0.05120111,143.8,143.78,0.04483262]
[1740821382677,6.2608,143.79,143.78,0.04483262]
[1740821385771,6.2622,143.76,143.73,9.96]
[1740821385971,4.5282,143.84,143.73,9.96]
[1740821386378,4.5282,143.84,143.71,9.98]
[1740821386687,4.5282,143.84,143.72,6.2637]
[1740821386980,0.046855,143.79,143.72,6.2637]
[1740821387170,6.262,143.77,143.72,6.2637]
[1740821387572,0.04725385,143.76,143.72,6.2637]
[1740821388276,6.30965385,143.76,143.71,16.244]
[1740821388476,0.04725385,143.76,143.71,9.98]
[1740821388981,0.04725385,143.76,143.72,6.2636]
[1740821389488,0.04725385,143.76,143.71,9.98]
[1740821389688,0.04725385,143.76,143.73,6.2634]
[1740821390586,0.04725385,143.76,143.71,9.98]
[1740821391189,0.04725385,143.76,143.75,6.2626]
[1740821398395,0.04725385,143.76,143.71,9.98]
[1740821399300,6.30965385,143.76,143.72,6.2636]
[1740821399684,0.04725385,143.76,143.72,6.2636]
[1740821399891,6.2626,143.75,143.71,16.2441]
[1740821401590,6.2631,143.74,143.71,16.2441]
[1740821401891,0.04725385,143.76,143.7,9.53723212]
[1740821402090,6.2643,143.71,143.7,9.53723212]
[1740821402284,2.1772,143.75,143.67,38.12203057]
[1740821402489,0.04649936,143.72,143.67,38.12203057]
[1740821402891,6.2652,143.7,143.67,38.12203057]
[1740821404598,6.2644,143.71,143.67,38.12203057]
[1740821405199,0.04649936,143.72,143.67,38.12203057]
[1740821405500,9.98,143.71,143.62,9.98]
[1740821405700,6.2661,143.67,143.63,6.2676]
[1740821408301,6.2665,143.66,143.63,6.2676]
[1740821408502,6.2665,143.66,143.62,6.2682]
[1740821408899,0.04599218,143.65,143.62,6.2682]
[1740821409398,6.31299218,143.65,143.62,6.2682]
[1740821409596,0.04599218,143.65,143.6,6.2689]
[1740821409996,6.2677,143.64,143.6,6.2689]
[1740821410197,0.04599218,143.65,143.59,6.2694]
[1740821410396,9.98,143.66,143.55,38.12203057]
[1740821410606,9.98,143.66,143.55,48.10203057]
[1740821410607,0.052611,143.63,143.55,48.10203057]
[1740821411003,6.320711,143.63,143.59,6.2695]
[1740821411205,0.052611,143.63,143.59,6.2695]
[1740821412003,0.052611,143.63,143.61,6.2684]
[1740821412204,0.052611,143.63,143.55,9.98]
[1740821412598,0.052611,143.63,143.61,6.2684]
[1740821413312,0.052611,143.63,143.6,6.269]
[1740821413511,2.2783,143.69,143.57,9.98]
[1740821413707,0.05022025,143.63,143.57,9.98]
[1740821413903,0.05022025,143.63,143.6,6.269]
[1740821414510,0.05022025,143.63,143.59,6.2694]
[1740821414704,0.05022025,143.63,143.57,9.98]
[1740821415413,6.2686,143.62,143.58,6.2699]
[1740821415709,0.05022025,143.63,143.54,227.084]
[1740821415913,6.2692,143.6,143.54,237.064]
[1740821416101,0.05136512,143.6,143.54,237.064]
[1740821417609,0.05136512,143.6,143.57,6.2701]
[1740821419510,6.32056512,143.6,143.57,6.2701]
[1740821422205,6.2701,143.58,143.55,6.271]
[1740821424012,6.2701,143.58,143.54,6.2716]
[1740821424415,0.04528816,143.57,143.54,6.2716]
[1740821425311,6.31588816,143.57,143.51,9.98]
[1740821425725,6.31588816,143.57,143.54,6.2716]
[1740821428521,6.31588816,143.57,143.51,6.2728]
[1740821428522,0.04528816,143.57,143.51,6.2728]
[1740821428925,0.04528816,143.57,143.5,2.1996]
[1740821429323,6.31608816,143.57,143.53,6.2719]
[1740821429521,0.04528816,143.57,143.53,6.2719]
[1740821429721,0.04528816,143.57,143.5,2.1996]
[1740821429927,6.2712,143.56,143.52,6.2724]
[1740821430326,6.2715,143.55,143.52,6.2724]
[1740821430527,0.04528816,143.57,143.51,6.2729]
[1740821430727,2.2646,143.58,143.51,6.2729]
[1740821430927,0.04512415,143.55,143.51,6.2729]
[1740821431228,6.2718,143.54,143.51,6.2729]
[1740821433727,0.04512415,143.55,143.52,6.2723]
[1740821433923,0.04512415,143.55,143.5,2.1996]
[1740821434230,0.04512415,143.55,143.54,6.2717]
[1740821437326,0.04512415,143.55,143.5,2.1996]
[1740821439331,5.53813,143.62,143.57,6.2704]
[1740821440434,6.2693,143.6,143.58,0.04488126]
[1740821441033,6.2691,143.6,143.58,0.04488126]
[1740821441233,0.0471138,143.61,143.58,0.04488126]
[1740821442033,6.2691,143.6,143.58,0.04488126]
[1740821442532,0.0471138,143.61,143.58,0.04488126]
[1740821442731,6.3160138,143.61,143.58,0.04488126]
[1740821444431,6.3160138,143.61,143.58,6.31488126]
[1740821450340,6.2691,143.6,143.58,0.04488126]
[1740821450640,0.0471138,143.61,143.58,0.04488126]
[1740821452439,6.2696,143.59,143.58,0.04488126]
[1740821453742,6.2712,143.56,143.53,16.252]
[1740821453940,6.2712,143.56,143.53,6.272]
[1740821454136,6.2715,143.55,143.52,6.2724]
[1740821454342,2.2269,143.59,143.5,38.12203057]
[1740821454843,0.04430444,143.56,143.55,6.2712]
[1740821455946,0.04430444,143.56,143.54,6.2716]
[1740821457845,0.04430444,143.56,143.55,6.2713]
[1740821459350,0.04430444,143.56,143.54,6.2716]
[1740821459541,0.04430444,143.56,143.51,2.1425]
[1740821461543,6.31520444,143.56,143.51,2.1425]
[1740821463147,6.2714,143.55,143.52,6.2723]
[1740821463553,6.2714,143.55,143.51,6.2728]
[1740821463854,6.2714,143.55,143.49,19.51723212]
[1740821464155,6.31530444,143.56,143.53,6.2721]
[1740821465553,6.2713,143.55,143.52,6.2724]
[1740821466154,6.2717,143.54,143.5,6.2731]
[1740821467852,6.2725,143.53,143.5,6.2731]
[1740821468046,6.7457,143.57,143.49,6.2735]
[1740821468248,0.05331671,143.53,143.49,6.2735]
[1740821468552,6.32581671,143.53,143.49,6.2735]
[1740821469246,6.2735,143.5,143.47,44.39663057]
[1740821469452,4.4954,143.52,143.47,34.68323057]
[1740821469646,0.04625606,143.5,143.47,34.68323057]
[1740821470149,0.04625606,143.5,143.43,28.58479845]
[1740821471257,0.04625606,143.5,143.43,38.56479845]
[1740821471460,0.04625606,143.5,143.44,6.7209]
[1740821472554,0.04625606,143.5,143.49,6.2739]
[1740821473256,0.04625606,143.5,143.44,6.7209]
[1740821473954,0.04625606,143.5,143.47,6.2745]
[1740821474651,6.31975606,143.5,143.47,6.2745]
[1740821474947,0.04625606,143.5,143.44,6.7209]
[1740821475153,0.04625606,143.5,143.42,9.98]
[1740821475343,6.2744,143.48,143.42,9.98]
[1740821475551,0.0512497,143.47,143.44,6.2758]
[1740821477355,0.0512497,143.47,143.42,9.98]
[1740821477659,0.0512497,143.47,143.45,6.2756]
[1740821477856,0.0512497,143.47,143.42,9.98]
[1740821477857,0.0512497,143.47,143.4,105.45888605]
[1740821478046,6.3261497,143.47,143.43,6.2763]
[1740821478250,0.0512497,143.47,143.4,105.45888605]
[1740821478446,0.0512497,143.47,143.4,115.43888605]
[1740821478749,0.0512497,143.47,143.44,6.2758]
[1740821481962,6.3260497,143.47,143.44,6.2758]
[1740821483565,0.0512497,143.47,143.44,6.2758]
[1740821483760,0.0512497,143.47,143.42,6.2767]
[1740821484760,6.2757,143.45,143.42,6.2767]
[1740821485465,6.2757,143.45,143.41,6.2772]
[1740821485867,0.04886386,143.44,143.41,6.2772]
[1740821486062,0.04886386,143.44,143.4,6.2777]
[1740821486262,9.98,143.46,143.4,6.2777]
[1740821486567,0.05077857,143.43,143.4,6.2777]
[1740821487568,6.32737857,143.43,143.4,6.2777]
[1740821491270,6.32737857,143.43,143.39,6.2781]
[1740821491470,6.2766,143.43,143.39,6.2781]
[1740821491670,0.04498378,143.42,143.39,6.2781]
[1740821492969,6.32208378,143.42,143.39,6.2781]
[1740821494767,0.04498378,143.42,143.39,6.2781]
[1740821495766,6.32198378,143.42,143.39,6.2781]
[1740821496273,0.04498378,143.42,143.39,6.2781]
[1740821497275,0.04498378,143.42,143.34,9.98]
[1740821498874,0.04498378,143.42,143.4,6.2776]
[1740821499072,0.04498378,143.42,143.34,110.9809509]
[1740821499377,0.04498378,143.42,143.34,9.98]
[1740821500475,0.04498378,143.42,143.4,6.2778]
[1740821502378,0.04498378,143.42,143.39,6.2781]
[1740821502579,6.32208378,143.42,143.39,6.2781]
[1740821503876,0.04498378,143.42,143.39,6.2781]
[1740821504070,0.04498378,143.42,143.4,6.2778]
[1740821504880,6.32208378,143.42,143.35,100.9985841]
[1740821505083,0.04498378,143.42,143.35,100.9985841]
[1740821505379,0.04498378,143.42,143.39,6.278]
[1740821506479,6.32218378,143.42,143.39,6.278]
[1740821506782,6.32218378,143.42,143.38,6.2785]
[1740821507482,6.32218378,143.42,143.39,6.2781]
[1740821509879,0.04498378,143.42,143.39,6.2781]
[1740821511289,6.32198378,143.42,143.39,6.2781]
[1740821511486,0.04498378,143.42,143.34,9.98]
[1740821511778,6.32218378,143.42,143.34,9.98]
[1740821511972,6.32218378,143.42,143.36,6.2794]
[1740821512181,6.32218378,143.42,143.34,9.98]
[1740821512477,6.32218378,143.42,143.34,38.56479845]
[1740821512874,6.2774,143.41,143.37,6.2789]
[1740821514788,6.2774,143.41,143.38,6.2787]
[1740821515197,6.32819444,143.41,143.38,6.2787]
[1740821515987,6.32819444,143.41,143.33,370.8163315]
[1740821516187,6.32819444,143.41,143.37,6.2789]
[1740821519289,6.32819444,143.41,143.38,6.2786]
[1740821522690,0.05079444,143.41,143.4,6.2779]
[1740821524292,0.05079444,143.41,143.39,6.2782]
[1740821524792,0.05079444,143.41,143.33,137.9163315]
[1740821526396,0.05079444,143.41,143.4,6.2779]
[1740821529399,12.2496,143.49,143.37,9.98]
[1740821529601,6.2755,143.46,143.38,4.386]
[1740821530095,6.2755,143.46,143.41,6.2771]
[1740821530501,12.2496,143.49,143.38,4.386]
[1740821530701,0.04594048,143.45,143.42,0.04644566]
[1740821531201,6.2766,143.43,143.42,0.04644566]
[1740821532493,9.98,143.44,143.42,0.04644566]
[1740821532699,0.04594048,143.45,143.42,0.04644566]
[1740821533002,6.32194048,143.45,143.42,0.04644566]
[1740821533803,6.2762,143.44,143.42,0.04644566]
[1740821533994,0.04594048,143.45,143.42,0.04644566]
[1740821535698,0.04594048,143.45,143.42,6.32314566]
[1740821535899,0.04594048,143.45,143.42,0.04644566]
[1740821538105,6.32174048,143.45,143.42,0.04644566]
[1740821539704,6.2762,143.44,143.42,0.04644566]
[1740821540298,6.2765,143.43,143.42,0.04644566]
[1740821544308,6.2776,143.41,143.36,6.2793]
[1740821544809,6.2776,143.41,143.35,106.4313647]
[1740821545400,0.04614073,143.39,143.35,106.4313647]
[1740821545708,0.04614073,143.39,143.35,104.3311647]
[1740821546504,6.32464073,143.39,143.35,110.6111647]
[1740821546809,0.04614073,143.39,143.34,38.25190136]
[1740821547206,6.279,143.38,143.34,44.53230136]
[1740821547407,6.279,143.38,143.32,38.25190136]
[1740821548514,6.279,143.38,143.34,6.2802]
[1740821550312,6.32464073,143.39,143.35,6.2799]
[1740821550705,0.04614073,143.39,143.32,38.25190136]
[1740821550912,0.04614073,143.39,143.37,6.2791]
[1740821552711,0.04614073,143.39,143.38,6.2787]
[1740821553815,9.98,143.44,143.41,6.2771]
[1740821554017,9.98,143.47,143.41,6.2771]
[1740821554514,6.2759,143.45,143.41,6.2771]
[1740821555118,0.0522477,143.44,143.42,0.04723647]
[1740821555416,0.0522477,143.44,143.4,6.2777]
[1740821555616,0.0522477,143.44,143.42,0.05125421]
[1740821556912,6.3283477,143.44,143.42,0.05125421]
[1740821560021,0.0522477,143.44,143.42,0.05125421]
[1740821561423,0.0522477,143.44,143.42,6.32815421]
[1740821561716,6.3284477,143.44,143.42,0.05125421]